[Event "ROU-chT Women Superliga 2018"]
[Site "Sovata"]
[Date "2018.11.26"]
[Round "2"]
[White "Lehaci, Miruna-Daria"]
[Black "Stanciu, Andreea-Briana"]
[Result "0-1"]
[ECO "C77"]
[WhiteElo "2067"]
[BlackElo "1953"]
[Annotator "NA"]
[PlyCount "140"]
[EventDate "2018.11.24"]
[EventType "team-tourn"]
[EventCountry "ROU"]
[SourceTitle "playchess.com"]
[Source "ChessBase"]
[SourceQuality "1"]
[TimeControl "40/5400+30:1800+30"]

1. e4 {[%emt 0:00:00]} e5 {[%emt 0:00:00]} 2. Nf3 {[%emt 0:00:00]} Nc6 {[%emt 0:00:00]} 3. Bb5 {[%emt 0:00:00]} a6 {[%emt 0:00:00]} 4. Ba4 {[%emt 0:00:00]} Nf6 {[%emt 0:00:00]} 5. d3 {[%emt 0:00:00] LiveBook: 3557 Games} d6 {[%emt 0:00:24]} 6. c4 {[%emt 0:00:00]} g6 {[%emt 0:01:49]} 7. Nc3 {[%emt 0:00:01]} Bg7 {[%emt 0:00:04]} 8. h3 {[%emt 0:00:03]} O-O {[%emt 0:00:47]} 9. O-O {[%emt 0:00:05]} h6 {[%emt 0:00:58] C77: Ruy Lopez: 3...a6 4 Ba4 Nf6, unusual lines} 10. Be3 {[%emt 0:02:07]} Bd7 {[%emt 0:04:52]} 11. Nd5 {[%emt 0:05:55]} Nxd5 $146 {[%emt 0:06:40]} ({Predecessor:} 11... Nh5 12. Nh2 {½-½ (12) Apicella,M (2553)-Kosten,A (2522) Chartres 2005}) 12. cxd5 {[%emt 0:00:26]} Ne7 {[%emt 0:00:12]} 13. Bxd7 {[%emt 0:00:18]} Qxd7 {[%emt 0:00:06]} 14. d4 {[%emt 0:18:15]} f5 {[%emt 0:03:19]} 15. dxe5 {[%emt 0:13:43]} dxe5 {[%emt 0:01:52]} 16. Bc5 {[%emt 0:01:23]} Kh7 {[%emt 0:15:05]} 17. d6 {[%emt 0:13:31]} cxd6 {[%emt 0:02:33]} 18. Qxd6 {[%emt 0:00:12]} Qxd6 {[%emt 0:00:37]} 19. Bxd6 {[%emt 0:00:04]} Rfe8 {[%emt 0:05:18]} 20. Rfe1 {[%emt 0:07:01]} Nc6 {[%emt 0:01:28]} 21. Rac1 {[%emt 0:12:28]} Rad8 {[%emt 0:02:32]} 22. Bc5 {[%emt 0:00:18]} Rd7 {[%emt 0:01:25]} 23. a4 {[%emt 0:04:21]} a5 {[%emt 0:06:28]} 24. Bb6 {[%emt 0:01:45]} Bf6 {[%emt 0:00:23]} 25. Red1 {[%emt 0:03:02]} Ree7 {[%emt 0:01:39]} 26. Rxd7 {[%emt 0:07:21]} Rxd7 {[%emt 0:01:52]} 27. Re1 {[%emt 0:00:03]} Kg7 {[%emt 0:12:14]} 28. Kf1 {[%emt 0:00:47]} Kf7 {[%emt 0:02:04]} 29. Re3 {[%emt 0:06:31]} Ke6 {[%emt 0:02:55]} 30. Ne1 {[%emt 0:01:04]} Bg5 {[%emt 0:01:11]} 31. Rg3 {[%emt 0:03:21]} fxe4 {[%emt 0:15:07]} 32. Bc5 {[%emt 0:01:11]} Kf5 {[%emt 0:01:49]} 33. Rb3 {[%emt 0:00:13]} h5 {[%emt 0:01:53]} 34. g3 {[%emt 0:00:08]} Ke6 {[%emt 0:03:18]} 35. h4 {[%emt 0:00:35]} Bd8 {[%emt 0:01:17]} 36. Nc2 {[%emt 0:00:52]} b6 {[%emt 0:00:36]} 37. Be3 {[%emt 0:00:08]} Rd3 {[%emt 0:01:50]} 38. Rc3 {[%emt 0:00:44]} Kd5 {[%emt 0:00:16]} 39. Ke2 {[%emt 0:00:05]} Rxc3 {[%emt 0:01:01]} 40. bxc3 {[%emt 0:00:00]} Kc4 {[%emt 0:00:00]} 41. Kd2 {[%emt 0:06:58]} Kb3 {[%emt 0:02:14]} 42. Na1+ {[%emt 0:00:18]} Kxa4 {[%emt 0:00:37]} 43. Kc2 {[%emt 0:00:07]} Kb5 {[%emt 0:00:10]} 44. Nb3 {[%emt 0:00:27]} Kc4 {[%emt 0:02:25]} 45. Nd2+ {[%emt 0:00:55] [#]} Kd5 $1 {[%emt 0:00:04]} 46. c4+ {[%emt 0:00:52]} Ke6 {[%emt 0:00:06]} 47. Nxe4 {[%emt 0:01:09]} Bc7 {[%emt 0:07:19]} 48. Nc3 {[%emt 0:03:46]} Nb4+ {[%emt 0:04:29]} 49. Kb3 {[%emt 0:01:40]} Kd7 {[%emt 0:03:01]} 50. Ne4 {[%emt 0:05:41]} Bd8 {[%emt 0:02:02]} 51. f3 {[%emt 0:05:24]} Nc6 {[%emt 0:03:51]} 52. Kc3 {[%emt 0:03:00]} Kc7 {[%emt 0:02:46]} 53. Kd3 {[%emt 0:03:12]} Nb4+ {[%emt 0:00:27]} 54. Kc3 {[%emt 0:00:06]} Be7 {[%emt 0:00:30]} 55. Ng5 {[%emt 0:00:35]} Nc6 {[%emt 0:03:51]} 56. g4 $2 {[%emt 0:01:49] [#]} (56. f4) 56... Nd4 $1 {[%emt 0:01:29]} 57. gxh5 {[%emt 0:00:05]} gxh5 {[%emt 0:01:41]} 58. Kd3 {[%emt 0:01:54]} Nf5 {[%emt 0:01:52]} 59. Bf2 {[%emt 0:00:14]} Bxg5 {[%emt 0:02:44]} 60. hxg5 {[%emt 0:00:04]} h4 {[%emt 0:00:03]} 61. Ke4 {[%emt 0:00:41] [#]} h3 $1 {[%emt 0:00:10]} 62. Bg1 {[%emt 0:00:08]} Nh4 {[%emt 0:02:34]} 63. Bh2 {[%emt 0:00:15]} Kd6 {[%emt 0:00:30]} 64. Bxe5+ {[%emt 0:00:24]} Ke6 {[%emt 0:00:05]} 65. Bh2 {[%emt 0:01:01]} a4 {[%emt 0:00:08]} 66. g6 {[%emt 0:02:49]} a3 {[%emt 0:00:37]} 67. g7 {[%emt 0:00:23]} Kf7 {[%emt 0:00:05]} 68. Kf4 {[%emt 0:01:26]} a2 {[%emt 0:00:29]} 69. Kg4 {[%emt 0:00:02]} Ng6 {[%emt 0:00:16]} 70. Kg5 {[%emt 0:00:31]} Kxg7 {[%emt 0:00:11] Kh4 [%clk 0:01:20]} 0-1

[Event "ROU-chT Women Superliga 2018"]
[Site "Sovata"]
[Date "2018.11.26"]
[Round "2"]
[White "Marin, Irina-Luiza"]
[Black "Rendi, Eva"]
[Result "1/2-1/2"]
[ECO "A13"]
[WhiteElo "2032"]
[BlackElo "2015"]
[Annotator "NA"]
[PlyCount "88"]
[EventDate "2018.11.24"]
[EventType "team-tourn"]
[EventCountry "ROU"]
[SourceTitle "playchess.com"]
[Source "ChessBase"]
[SourceQuality "1"]
[TimeControl "40/5400+30:1800+30"]

1. c4 {[%emt 0:00:00]} e6 {[%emt 0:00:00]} 2. Nf3 {[%emt 0:00:26]} d5 {[%emt 0:01:01]} 3. b3 {[%emt 0:00:25]} Nf6 {[%emt 0:01:17]} 4. g3 {[%emt 0:00:18]} Be7 {[%emt 0:00:34]} 5. Bg2 {[%emt 0:00:12]} O-O {[%emt 0:00:40]} 6. O-O {[%emt 0:00:18]} c5 {[%emt 0:00:44]} 7. Bb2 {[%emt 0:00:43]} Nc6 {[%emt 0:02:53]} 8. e3 {[%emt 0:00:35]} d4 {[%emt 0:02:03]} 9. exd4 {[%emt 0:01:44]} cxd4 {[%emt 0:01:56]} 10. Re1 {[%emt 0:00:45]} Re8 {[%emt 0:02:41]} 11. Ne5 {[%emt 0:06:08]} Nxe5 {[%emt 0:05:38]} 12. Rxe5 {[%emt 0:00:08]} Nd7 {[%emt 0:02:54]} 13. Re1 {[%emt 0:00:42]} Nc5 $11 {[%emt 0:08:46]} ({Black should play} 13... e5 $15) 14. d3 {[%emt 0:02:40]} a5 {[%emt 0:04:22]} 15. Qf3 {[%emt 0:28:58]} Bf6 {[%emt 0:05:45]} 16. Nd2 {[%emt 0:01:33]} Bd7 {[%emt 0:04:28]} 17. Ne4 {[%emt 0:05:40]} Nxe4 {[%emt 0:01:11]} 18. Qxe4 {[%emt 0:03:30]} Bc6 {[%emt 0:00:51]} 19. Qe2 {[%emt 0:03:55]} Qb6 {[%emt 0:08:08]} 20. Rab1 {[%emt 0:02:27]} e5 {[%emt 0:06:22]} 21. h4 {[%emt 0:04:00]} Bxg2 {[%emt 0:02:57]} 22. Kxg2 {[%emt 0:00:09]} Re6 {[%emt 0:08:34]} 23. Qe4 {[%emt 0:07:51]} Rae8 {[%emt 0:12:08]} 24. Ba3 {[%emt 0:05:59]} Be7 {[%emt 0:02:29]} 25. Bxe7 {[%emt 0:00:49]} R6xe7 {[%emt 0:02:42]} 26. a3 {[%emt 0:00:15]} Qe6 {[%emt 0:02:30]} 27. g4 {[%emt 0:03:20]} g6 {[%emt 0:02:00]} 28. g5 {[%emt 0:02:45]} f5 {[%emt 0:01:27]} 29. gxf6 {[%emt 0:04:23]} Qxf6 {[%emt 0:00:06]} 30. b4 {[%emt 0:00:10]} a4 {[%emt 0:01:58]} 31. b5 {[%emt 0:02:19]} g5 {[%emt 0:00:50]} 32. Qg4 {[%emt 0:02:47]} Rg7 {[%emt 0:01:16]} 33. h5 {[%emt 0:00:09]} Qd6 {[%emt 0:01:26]} 34. Rb4 {[%emt 0:01:57]} Rf8 {[%emt 0:01:15]} 35. Rxa4 {[%emt 0:01:15]} Rgf7 {[%emt 0:00:27]} 36. Re2 {[%emt 0:00:33]} Qh6 {[%emt 0:00:32]} 37. Ra7 {[%emt 0:04:36]} Rf4 {[%emt 0:01:08]} 38. Qh3 {[%emt 0:00:09]} Qf6 {[%emt 0:01:06]} 39. Qg3 {[%emt 0:03:52]} Rf3 {[%emt 0:00:10]} 40. Qxe5 {[%emt 0:00:00]} Rxf2+ {[%emt 0:00:00]} 41. Kg1 {[%emt 0:01:21]} Rf1+ {[%emt 0:07:05]} 42. Kh2 {[%emt 0:00:15]} Rf2+ {[%emt 0:03:58]} 43. Kg1 {[%emt 0:00:20]} Rf1+ {[%emt 0:00:29]} 44. Kh2 {[%emt 0:00:10]} Rf2+ {[%emt 0:00:07]} 1/2-1/2

[Event "ROU-chT Women Superliga 2018"]
[Site "Sovata"]
[Date "2018.11.26"]
[Round "2"]
[White "Aciu, Malina-Andreea"]
[Black "Patru, Alexandra-Ioana"]
[Result "1/2-1/2"]
[ECO "C88"]
[WhiteElo "1976"]
[BlackElo "1631"]
[Annotator "NA"]
[PlyCount "100"]
[EventDate "2018.11.24"]
[EventType "team-tourn"]
[EventCountry "ROU"]
[SourceTitle "playchess.com"]
[Source "ChessBase"]
[SourceQuality "1"]
[TimeControl "40/5400+30:1800+30"]

1. e4 {[%emt 0:00:00]} e5 {[%emt 0:00:00]} 2. Nf3 {[%emt 0:00:00]} Nc6 {[%emt 0:00:00]} 3. Bb5 {[%emt 0:00:00]} a6 {[%emt 0:00:00]} 4. Ba4 {[%emt 0:00:00]} Nf6 {[%emt 0:00:00]} 5. O-O {[%emt 0:00:00]} Be7 {[%emt 0:00:00]} 6. Re1 {[%emt 0:00:00]} b5 {[%emt 0:00:03]} 7. Bb3 {[%emt 0:00:03]} O-O {[%emt 0:00:06]} 8. a4 {[%emt 0:00:03]} Bb7 {[%emt 0:02:32]} 9. d3 {[%emt 0:00:06]} d6 {[%emt 0:03:40]} 10. Nbd2 {[%emt 0:00:09]} h6 {[%emt 0:04:24]} 11. Nf1 {[%emt 0:00:36]} Re8 {[%emt 0:05:58]} 12. Bd2 {[%emt 0:04:58]} Bf8 {[%emt 0:02:01]} 13. Ne3 {[%emt 0:01:12]} g6 {[%emt 0:08:44]} 14. c4 {[%emt 0:06:03]} bxc4 {[%emt 0:05:43]} 15. Bxc4 {[%emt 0:00:16]} Qd7 {[%emt 0:05:58]} 16. b4 $11 {[%emt 0:18:19]} Reb8 {[%emt 0:04:29]} 17. Bc3 {[%emt 0:02:50]} Bg7 {[%emt 0:01:39]} 18. Qb3 {[%emt 0:12:17]} Nd8 {[%emt 0:02:57]} 19. Qa2 {[%emt 0:04:12]} c6 {[%emt 0:02:11]} 20. Rad1 {[%emt 0:02:40]} Qc7 {[%emt 0:02:00]} 21. Nc2 {[%emt 0:05:42]} Nd7 {[%emt 0:05:16]} 22. Bd2 {[%emt 0:20:22]} c5 {[%emt 0:03:06]} 23. Rb1 {[%emt 0:01:19]} cxb4 {[%emt 0:04:46]} 24. Nxb4 {[%emt 0:00:28]} Nc5 {[%emt 0:01:08]} 25. Be3 {[%emt 0:02:38]} a5 {[%emt 0:03:35]} 26. Bxc5 {[%emt 0:01:54]} Qxc5 {[%emt 0:00:50]} 27. Nd5 {[%emt 0:01:35]} Bxd5 {[%emt 0:00:31]} 28. Bxd5 {[%emt 0:00:20]} Rxb1 {[%emt 0:00:15]} 29. Rxb1 {[%emt 0:01:48]} Rc8 {[%emt 0:00:07]} 30. g3 {[%emt 0:01:04]} Bf6 {[%emt 0:02:17]} 31. Bc4 {[%emt 0:00:57]} Qc7 {[%emt 0:00:57]} 32. Kg2 {[%emt 0:00:54]} Rb8 {[%emt 0:04:10]} 33. Rc1 {[%emt 0:02:53]} Qb7 {[%emt 0:04:48]} 34. Bb5 {[%emt 0:02:37]} Rc8 {[%emt 0:01:44]} 35. Rb1 {[%emt 0:01:08]} Qc7 {[%emt 0:00:33]} 36. Bc4 {[%emt 0:00:36]} Kg7 {[%emt 0:01:31]} 37. Qb3 {[%emt 0:01:33]} Nc6 {[%emt 0:01:41]} 38. Rc1 {[%emt 0:01:21]} Nb4 {[%emt 0:01:23]} 39. Rb1 {[%emt 0:02:52]} Rb8 {[%emt 0:01:38]} 40. Ne1 {[%emt 0:00:00]} Nc6 {[%emt 0:00:00]} 41. Qa2 {[%emt 0:02:52]} Rxb1 {[%emt 0:03:30]} 42. Qxb1 {[%emt 0:00:04]} Nb4 {[%emt 0:00:23]} 43. Nc2 {[%emt 0:01:44]} Nxc2 {[%emt 0:00:06]} 44. Qxc2 {[%emt 0:00:02]} Bd8 {[%emt 0:00:42]} 45. Qb3 {[%emt 0:02:59]} Qa7 {[%emt 0:01:17]} 46. h4 {[%emt 0:02:31]} Bb6 {[%emt 0:00:31]} 47. Qa2 {[%emt 0:00:10]} h5 {[%emt 0:00:24]} 48. Qe2 {[%emt 0:02:46]} Qe7 {[%emt 0:01:14]} 49. Qf3 {[%emt 0:04:23]} Qf6 {[%emt 0:01:26]} 50. Qxf6+ {[%emt 0:03:30]} Kxf6 {[%emt 0:00:06]} 1/2-1/2

[Event "ROU-chT Women Superliga 2018"]
[Site "Sovata"]
[Date "2018.11.26"]
[Round "2"]
[White "Ciolacu, Alessia-Mihaela"]
[Black "Firaru, Roxana-Maria"]
[Result "1-0"]
[ECO "A46"]
[WhiteElo "1972"]
[BlackElo "1943"]
[Annotator "NA"]
[PlyCount "123"]
[EventDate "2018.11.24"]
[EventType "team-tourn"]
[EventCountry "ROU"]
[SourceTitle "playchess.com"]
[Source "ChessBase"]
[SourceQuality "1"]
[TimeControl "40/5400+30:1800+30"]

1. d4 {[%emt 0:00:00]} Nf6 {[%emt 0:00:22]} 2. Nf3 {[%emt 0:00:00]} e6 {[%emt 0:00:36]} 3. Bg5 {[%emt 0:00:05]} d5 {[%emt 0:02:11]} 4. e3 {[%emt 0:00:17]} Nbd7 {[%emt 0:05:01]} 5. c4 {[%emt 0:00:37]} Bb4+ {[%emt 0:05:10]} 6. Nc3 {[%emt 0:00:26]} O-O {[%emt 0:00:39]} 7. Qc2 {[%emt 0:02:47] D38: Queen's Gambit Declined: Ragozin Defence (4 Nf3 Bb4)} (7. Rc1 c6 8. a3 Be7 9. h3 h6 10. Bf4 dxc4 11. Bxc4 b5 12. Bd3 Bb7 13. O-O Qb6 14. Qe2 a6 {½-½ (51) Goganov,A (2627)-Kravtsiv,M (2631) Riga 2016}) 7... h6 {[%emt 0:05:21]} 8. Bh4 {[%emt 0:01:11]} Re8 {[%emt 0:05:59]} 9. a3 {[%emt 0:03:39]} Bxc3+ {[%emt 0:03:45]} 10. Qxc3 {[%emt 0:00:11]} a5 $146 {[%emt 0:09:15]} ({Predecessor:} 10... b6 11. cxd5 exd5 12. Bd3 c5 13. O-O Bb7 14. Rac1 Rc8 15. Qd2 Qe7 {½-½ (53) Hoshino,K (1726)-Yoshioka,A (1601) Sao Paulo 2014}) 11. c5 {[%emt 0:08:28]} c6 {[%emt 0:03:18]} 12. Bd3 {[%emt 0:01:20]} Qe7 {[%emt 0:05:31]} 13. b4 {[%emt 0:03:00]} axb4 {[%emt 0:03:38]} 14. axb4 {[%emt 0:00:10]} Rxa1+ {[%emt 0:01:05]} 15. Qxa1 {[%emt 0:00:05]} e5 {[%emt 0:04:11]} 16. dxe5 {[%emt 0:02:07]} Nxe5 {[%emt 0:00:37]} 17. Nxe5 {[%emt 0:00:09]} Qxe5 {[%emt 0:00:15]} 18. Qxe5 {[%emt 0:02:18]} Rxe5 {[%emt 0:00:05]} 19. Bxf6 {[%emt 0:01:09]} gxf6 {[%emt 0:00:02]} 20. Kd2 {[%emt 0:00:21]} Kf8 {[%emt 0:03:04]} 21. Ra1 {[%emt 0:03:53]} Re8 {[%emt 0:01:02]} 22. Ra8 {[%emt 0:04:05]} Be6 {[%emt 0:03:15]} 23. Rxe8+ {[%emt 0:16:43]} Kxe8 {[%emt 0:00:06]} 24. Ke2 {[%emt 0:00:11]} Kd8 {[%emt 0:08:17]} 25. Kf3 {[%emt 0:02:21]} Ke7 {[%emt 0:01:55]} 26. Kf4 {[%emt 0:11:11]} Kf8 {[%emt 0:02:16]} 27. g4 {[%emt 0:05:47]} Kg7 {[%emt 0:04:00]} 28. Bf5 {[%emt 0:02:14]} Kf8 {[%emt 0:01:54]} 29. Bd3 {[%emt 0:05:12]} Kg8 {[%emt 0:00:26]} 30. Kg3 {[%emt 0:00:13]} Bd7 {[%emt 0:01:30]} 31. Kh4 {[%emt 0:03:13]} Bc8 {[%emt 0:02:38]} 32. Kh5 {[%emt 0:03:50]} Kg7 {[%emt 0:00:11]} 33. f3 {[%emt 0:01:40]} Bd7 {[%emt 0:00:38]} 34. Bc2 {[%emt 0:00:15]} Bc8 {[%emt 0:00:20]} 35. e4 {[%emt 0:04:50]} dxe4 {[%emt 0:05:17]} 36. Bxe4 {[%emt 0:00:07]} Be6 {[%emt 0:08:06]} 37. Kh4 {[%emt 0:05:28]} Kf8 {[%emt 0:01:09]} 38. Kg3 {[%emt 0:00:39]} Ke7 {[%emt 0:00:42]} 39. f4 {[%emt 0:00:47]} Kf8 {[%emt 0:01:54]} 40. Kf3 {[%emt 0:00:00]} Ke7 $1 $11 {[%emt 0:00:00]} 41. Kg3 {[%emt 0:03:44]} Kf8 {[%emt 0:02:04]} 42. Kh4 {[%emt 0:01:05]} Kg8 {[%emt 0:01:47]} 43. Kh5 {[%emt 0:02:21]} Kg7 {[%emt 0:00:17]} 44. Bd3 {[%emt 0:03:21]} Bb3 {[%emt 0:04:23]} 45. Bf5 {[%emt 0:01:35]} Be6 $2 {[%emt 0:02:46]} (45... Bc4 $16) 46. Be4 {[%emt 0:05:34]} Bc4 {[%emt 0:03:03]} 47. Kh4 {[%emt 0:02:46]} Kf8 {[%emt 0:01:38]} 48. Kg3 {[%emt 0:00:38]} Ke7 {[%emt 0:00:41]} 49. Kf3 {[%emt 0:01:05]} Kf8 {[%emt 0:03:04]} 50. Ke3 {[%emt 0:01:14]} Ke7 {[%emt 0:00:36]} 51. h4 {[%emt 0:01:20]} Be6 {[%emt 0:07:18]} 52. Bf3 {[%emt 0:06:19]} Bc4 {[%emt 0:01:26]} 53. Kd4 {[%emt 0:01:27]} Ba6 {[%emt 0:04:42]} 54. Be4 {[%emt 0:01:44]} Ke6 $2 {[%emt 0:01:58]} (54... Be2 $16) 55. Bf5+ {[%emt 0:00:26]} Ke7 {[%emt 0:00:16]} 56. Bd3 {[%emt 0:00:27]} Ke6 {[%emt 0:05:01]} 57. Bxa6 {[%emt 0:03:39]} bxa6 {[%emt 0:00:05]} 58. Ke4 $11 {[%emt 0:00:07]} (58. Kd3 $18 Ke7 59. h5) 58... Kd7 {[%emt 0:01:13]} 59. Kf5 {[%emt 0:00:08]} Ke7 {[%emt 0:00:48]} 60. h5 {[%emt 0:00:12]} Ke8 {[%emt 0:00:33]} 61. Kxf6 {[%emt 0:00:08]} Kf8 {[%emt 0:00:10]} 62. g5 {[%emt 0:00:18]} 1-0

[Event "ROU-chT Women Superliga 2018"]
[Site "Sovata"]
[Date "2018.11.26"]
[Round "2"]
[White "Panainte, Andreea-Bianca"]
[Black "Pelin, Ana-Maria"]
[Result "1-0"]
[ECO "B22"]
[WhiteElo "1946"]
[BlackElo "1751"]
[Annotator "NA"]
[PlyCount "53"]
[EventDate "2018.11.24"]
[EventType "team-tourn"]
[EventCountry "ROU"]
[SourceTitle "playchess.com"]
[Source "ChessBase"]
[SourceQuality "1"]
[TimeControl "40/5400+30:1800+30"]

1. e4 {[%emt 0:00:00]} c5 {[%emt 0:00:00]} 2. c3 {[%emt 0:00:00]} Nf6 {[%emt 0:00:00]} 3. e5 {[%emt 0:00:00]} Nd5 {[%emt 0:00:00]} 4. d4 {[%emt 0:00:00]} cxd4 {[%emt 0:00:00] LiveBook: 7245 Games} 5. Nf3 {[%emt 0:00:00]} Nc6 {[%emt 0:00:09]} 6. Bc4 {[%emt 0:00:03]} Nb6 {[%emt 0:00:06]} 7. Bb3 {[%emt 0:00:04]} d5 {[%emt 0:00:27]} 8. exd6 {[%emt 0:00:07]} Qxd6 {[%emt 0:00:05]} 9. O-O {[%emt 0:00:04]} Be6 {[%emt 0:09:21]} 10. Na3 {[%emt 0:00:07]} a6 {[%emt 0:00:37]} 11. Bxe6 {[%emt 0:00:07]} Qxe6 {[%emt 0:00:08]} 12. Nxd4 {[%emt 0:00:04] B22: Sicilian: 2 c3} Qd7 {[%emt 0:04:33]} (12... Nxd4 13. Qxd4 Rd8 14. Qe3 Qxe3 15. Bxe3 Na4 16. Rab1 e6 17. Nc4 f6 18. Rfc1 Bc5 19. Bxc5 Nxc5 {½-½ (49) Savic,M (2515)-Miladinovic,I (2557) Cetinje 2012}) 13. Be3 {[%emt 0:04:34]} Nd5 {[%emt 0:06:32]} 14. Nc4 {[%emt 0:04:01]} Nxe3 $146 {[%emt 0:13:34]} ({Predecessor:} 14... e6 15. Qf3 Nd8 16. Rfe1 Nxe3 17. Nb6 Qd6 18. Nxa8 Nc4 19. Rad1 Qb8 {1-0 (27) Degraeve,J (2410)-Luce,S (2415) Toulouse 1995}) 15. fxe3 {[%emt 0:01:00]} Rd8 {[%emt 0:08:04]} 16. Qf3 $16 {[%emt 0:03:31]} f6 {[%emt 0:02:22]} 17. Rad1 {[%emt 0:06:38]} Nxd4 18. Rxd4 {[%emt 0:00:59]} Qc7 {[%emt 0:06:25]} 19. Rxd8+ {[%emt 0:00:22]} Kxd8 {[%emt 0:00:15]} 20. Rd1+ {[%emt 0:02:28]} Kc8 {[%emt 0:18:55]} 21. Qf5+ {[%emt 0:02:10]} Kb8 {[%emt 0:00:05]} 22. Qe6 {[%emt 0:00:10]} Qc6 {[%emt 0:01:17]} 23. Rd8+ {[%emt 0:02:23]} Ka7 {[%emt 0:00:14]} 24. Qf7 {[%emt 0:05:34]} Qe4 {[%emt 0:03:24]} 25. h3 {[%emt 0:07:22]} h5 {[%emt 0:12:25]} 26. b3 {[%emt 0:02:02]} h4 {[%emt 0:01:13]} 27. Qe8 {[%emt 0:00:34]} 1-0

[Event "ROU-chT Women Superliga 2018"]
[Site "Sovata"]
[Date "2018.11.26"]
[Round "2"]
[White "Ciungan, Diana-Alexandra"]
[Black "Baciu, Anca-Otilia"]
[Result "1/2-1/2"]
[ECO "B81"]
[WhiteElo "1863"]
[BlackElo "1998"]
[Annotator "NA"]
[PlyCount "50"]
[EventDate "2018.11.24"]
[EventType "team-tourn"]
[EventCountry "ROU"]
[SourceTitle "playchess.com"]
[Source "ChessBase"]
[SourceQuality "1"]
[TimeControl "40/5400+30:1800+30"]

1. e4 {[%emt 0:00:00]} c5 {[%emt 0:00:00]} 2. Nf3 {[%emt 0:00:00]} e6 {[%emt 0:00:00]} 3. d4 {[%emt 0:00:00]} cxd4 {[%emt 0:00:00]} 4. Nxd4 {[%emt 0:00:05]} Nf6 {[%emt 0:00:07]} 5. Nc3 {[%emt 0:00:10]} d6 {[%emt 0:00:09]} 6. g4 {[%emt 0:00:16]} Nc6 {[%emt 0:01:26]} 7. g5 {[%emt 0:04:30]} Nd7 {[%emt 0:00:07]} 8. Ndb5 {[%emt 0:08:10]} Nb6 {[%emt 0:10:07]} 9. Bf4 {[%emt 0:08:59]} e5 {[%emt 0:07:28]} 10. Be3 {[%emt 0:00:34]} Be6 {[%emt 0:00:24]} (10... a6 $11 11. Na3 Be6) 11. Bxb6 $15 {[%emt 0:13:26]} (11. Nd5 $16 Bxd5 12. exd5) 11... Qxb6 {[%emt 0:19:14]} 12. Nd5 {[%emt 0:00:46]} Bxd5 {[%emt 0:00:06]} 13. Qxd5 {[%emt 0:00:04]} a6 {[%emt 0:12:09]} 14. Nxd6+ {[%emt 0:13:02]} Bxd6 {[%emt 0:00:08]} 15. Qxd6 {[%emt 0:00:04]} Qxb2 {[%emt 0:02:52]} 16. Rd1 {[%emt 0:00:04]} Rd8 {[%emt 0:14:02]} 17. Qc5 {[%emt 0:02:24]} Rxd1+ {[%emt 0:00:08]} 18. Kxd1 {[%emt 0:00:04]} Qxa2 {[%emt 0:02:03]} 19. Bh3 {[%emt 0:08:18]} Qa1+ {[%emt 0:05:18]} 20. Kd2 {[%emt 0:00:04]} Qd4+ {[%emt 0:02:15]} 21. Qxd4 {[%emt 0:00:12]} Nxd4 {[%emt 0:00:21]} 22. Bc8 {[%emt 0:00:32]} Ke7 {[%emt 0:05:17]} 23. Bxb7 {[%emt 0:00:09]} a5 {[%emt 0:00:21]} 24. Ra1 {[%emt 0:01:39]} Rb8 {[%emt 0:01:05]} 25. Bd5 {[%emt 0:04:29]} Rb2 {[%emt 0:02:56]} 1/2-1/2

[Event "ROU-chT Women Superliga 2018"]
[Site "Sovata"]
[Date "2018.11.26"]
[Round "2"]
[White "Anton, Ana-Roxana"]
[Black "Cosman, Andreea-Marioara"]
[Result "0-1"]
[ECO "B23"]
[WhiteElo "1860"]
[BlackElo "2176"]
[Annotator "NA"]
[PlyCount "70"]
[EventDate "2018.11.24"]
[EventType "team-tourn"]
[EventCountry "ROU"]
[SourceTitle "playchess.com"]
[Source "ChessBase"]
[SourceQuality "1"]
[TimeControl "40/5400+30:1800+30"]

1. e4 {[%emt 0:00:00]} c5 {[%emt 0:00:00]} 2. Nc3 {[%emt 0:00:00]} d6 {[%emt 0:00:00]} 3. Bb5+ {[%emt 0:00:16]} Nc6 {[%emt 0:00:00]} 4. f4 {[%emt 0:00:48]} Bd7 {[%emt 0:00:09]} 5. a4 {[%emt 0:04:13]} g6 {[%emt 0:02:00]} 6. Nf3 {[%emt 0:00:15]} Bg7 {[%emt 0:02:57]} 7. O-O {[%emt 0:02:13]} e6 {[%emt 0:03:41]} 8. Bc4 {[%emt 0:08:29]} Nge7 {[%emt 0:05:42]} 9. Ng5 $15 {[%emt 0:18:57]} O-O {[%emt 0:11:07]} 10. d3 {[%emt 0:10:50]} Nd4 {[%emt 0:19:00]} 11. Ne2 {[%emt 0:02:45]} d5 {[%emt 0:01:44]} 12. Bb3 {[%emt 0:07:20]} Nxb3 {[%emt 0:06:35]} 13. cxb3 {[%emt 0:00:00]} Nc6 {[%emt 0:00:01]} 14. Kh1 {[%emt 0:10:13]} dxe4 {[%emt 0:07:56]} 15. dxe4 {[%emt 0:00:17]} Nb4 {[%emt 0:00:34]} 16. Ng3 {[%emt 0:03:37]} h6 {[%emt 0:03:40]} 17. Nf3 {[%emt 0:01:52]} Bc6 {[%emt 0:00:15]} 18. Be3 {[%emt 0:02:12]} b6 {[%emt 0:05:18]} 19. Rf2 {[%emt 0:03:18]} Qc8 {[%emt 0:10:49]} 20. Rd2 {[%emt 0:00:31]} Qb7 {[%emt 0:01:03]} 21. Ne5 {[%emt 0:06:48]} h5 {[%emt 0:02:51]} 22. Nxc6 {[%emt 0:02:15]} Qxc6 {[%emt 0:00:05]} 23. Qf3 {[%emt 0:00:27]} Rfd8 {[%emt 0:07:46]} 24. Rad1 {[%emt 0:00:24]} Bf6 {[%emt 0:01:15]} 25. h3 {[%emt 0:03:55]} Rxd2 {[%emt 0:02:14]} 26. Rxd2 {[%emt 0:00:05]} Rd8 {[%emt 0:00:30]} 27. Rxd8+ {[%emt 0:07:22]} Bxd8 {[%emt 0:00:06]} 28. Qd1 {[%emt 0:00:06]} Bh4 {[%emt 0:00:04]} 29. Bf2 {[%emt 0:03:03]} Bxg3 {[%emt 0:01:18]} 30. Bxg3 {[%emt 0:00:02]} Qxe4 {[%emt 0:00:10]} 31. Qd8+ {[%emt 0:00:06]} Kg7 {[%emt 0:01:53]} 32. Qc7 {[%emt 0:00:18]} Nd5 {[%emt 0:00:25]} 33. Qb7 {[%emt 0:01:08]} Qb1+ {[%emt 0:03:42]} 34. Kh2 {[%emt 0:00:21]} Ne3 {[%emt 0:00:13]} 35. Qf3 {[%emt 0:00:36]} Nf1+ 0-1